Cogmind - Beta 13 @@@ ROGUE MODE // 2024.04.04 @ 18:18:58 Player: Lunace Result: Destroyed by S-27 Virus with Autogun Performance ------------- Evolutions (3) 1500 Regions Visited (5) 1000 Robots Destroyed (25) 125 Value Destroyed (414) 414 Prototype IDs (6) 120 Alien Tech Used (0) 0 Bonus (-94) -94 TOTAL SCORE: 3065 Bonus ------- Friendly Fire -94 Cogmind --------- Core Integrity 0/700 Matter 16/300 Energy 346/350 System Corruption 2% Temperature Cool (4) Movement Flying (26) Location -7/Factory Parts ------- > --- POWER (1) -------- Micro Nuclear Core > --- PROPULSION (4) --- Cesium-ion Thruster Improved VTOL Module Improved VTOL Module Improved VTOL Module > --- UTILITY (6) ------ Compact Battery Improved Signal Interpreter Hacking Suite Hacking Suite Hacking Suite > --- WEAPON (2) ------- Mini Assault Cannon > --- INVENTORY (5) ---- Cooled Deuterium Engine Remote Datajack Peak State ------------ > --- POWER ------------ Cooled Deuterium Engine > --- PROPULSION ------- Improved VTOL Module Improved VTOL Module Improved VTOL Module Improved VTOL Module > --- UTILITY ---------- Improved Sensor Array Improved Signal Interpreter Hacking Suite Hacking Suite Hacking Suite Hacking Suite > --- WEAPON ----------- (None) > --- INVENTORY -------- Improved Flight Unit Compact Battery Remote Datajack [Rating: 40] Favorites ----------- Power Light Ion Engine Engine Light Ion Engine Power Core Micro Nuclear Core Propulsion Flight Unit Leg Aluminum Leg Hover Unit Hover Unit Flight Unit Flight Unit Utility Hacking Suite Device Improved Sensor Array Storage Small Storage Unit Processor Improved Signal Interpreter Hackware Hacking Suite Weapon Datajack Energy Gun Medium Laser Energy Cannon EM Pulse Cannon Ballistic Gun Assault Rifle Ballistic Cannon Mini Assault Cannon Launcher Mini Grenade Launcher Special Weapon Remote Datajack Special Melee Weapon Datajack Build | -11 -10 -9 -9 -8 -7 ------- Run | Yrd Mat Mat Min Mat Fac Slots Evolved 6 | . . 2 . 2 2 Power . | . . . . . . Propulsion 2 | . . . . 2 . Utility 4 | . . 2 . . 2 Weapon . | . . . . . . Parts Attached 64 | 5 2 17 3 7 30 Power 11 | 1 . 4 2 1 3 Engine 10 | 1 . 4 2 1 2 Core 1 | . . . . . 1 Reactor . | . . . . . . Propulsion 27 | 2 . 8 . 5 12 Treads . | . . . . . . Leg 2 | 2 . . . . . Wheel . | . . . . . . Hover 2 | . . 2 . . . Flight 23 | . . 6 . 5 12 Utility 17 | 1 1 3 1 . 11 Device 5 | . . 1 1 . 3 Storage 2 | 1 . . . . 1 Processor 4 | . . 1 . . 3 Hackware 6 | . 1 1 . . 4 Protection . | . . . . . . Artifact . | . . . . . . Weapon 9 | 1 1 2 . 1 4 Energy Gun 1 | . 1 . . . . Energy Cannon 1 | . . . . . 1 Ballistic Gun 2 | 1 . 1 . . . Ballistic Cannon 1 | . . . . . 1 Launcher 1 | . . 1 . . . Special Weapon 2 | . . . . . 2 Impact Weapon . | . . . . . . Slashing Weapon . | . . . . . . Piercing Weapon . | . . . . . . Special Melee Weapon 1 | . . . . 1 . Unidentified Prototypes 4 | . . 1 . . 3 Parts Lost 19 | . . 2 2 3 12 Power 2 | . . . . 1 1 Propulsion 10 | . . 2 . 1 7 Utility 4 | . . . 1 . 3 Weapon 3 | . . . 1 1 1 Highest Loss Streak 4 | . . 2 2 2 4 To Critical Strikes . | . . . . . . Average Slot Usage (%) 83 | . 98 96 97 85 76 Engine 6 | . 14 9 11 8 3 Leg 4 | . 28 11 . . . Flight 19 | . . 8 22 34 22 Device 7 | . . 11 10 9 7 Storage 3 | . 14 5 . . 1 Processor 8 | . . 11 11 9 9 Hackware 21 | . 12 16 22 18 24 Energy Gun 2 | . 14 5 . . . Ballistic Gun 3 | . 14 11 9 . . Launcher 1 | . . 5 11 4 . Special Weapon 1 | . . . . . 1 Special Melee Weapon 1 | . . . . 1 2 Naked Turns . | . . . . . . Heaviest Build 18 | 10 12 13 6 11 18 Greatest Support 20 | 20 20 20 9 17 20 Greatest Overweight (x) 5 | 2 . 1 . . 5 Average Overweight (x) . | . . . . . . Largest Inventory Capacity 8 | 8 8 8 5 5 5 Average Capacity 5 | 7 8 6 5 5 5 Most Carried 6 | 2 4 6 5 5 5 Average Carried 3 | . 2 3 4 3 3 Final Capacity 8 | 8 8 5 5 5 5 Final Carried 5 | 2 4 4 4 5 2 Class Distribution -------------------- 33% | Hacker-Mutant 21% | Scavenger-Mutant 14% | Hacker-Sprinter 11% | Mutant 10% | Scavenger-Scout 4% | Scavenger-Sprinter Dominant Class ---------------- Mutant | -10/Materials Scavenger-Mutant | -9/Materials Scavenger-Mutant | -9/Mines Scavenger-Sprinter | -8/Materials Hacker-Mutant | -7/Factory Resources | -11 -10 -9 -9 -8 -7 ----------- Run | Yrd Mat Mat Min Mat Fac Matter Collected 791 | 217 80 128 236 130 . Remotely . | . . . . . . Salvage Created 502 | . 116 199 23 164 . Parts 41 | . 10 17 . 14 . Haulers Intercepted 1 | . . . . 1 . Recyclers Shooed . | . . . . . . Parts Field Recycled . | . . . . . . Retrieved Matter . | . . . . . . Parts Self-Destructed . | . . . . . . Prevented . | . . . . . . Kills | -11 -10 -9 -9 -8 -7 ------- Run | Yrd Mat Mat Min Mat Fac Combat Hostiles Destroyed 23 | . 2 10 4 7 . Melee 1 | . . . 1 . . Guns 7 | . 2 4 1 . . AOE 15 | . . 6 2 7 . Classes Destroyed 8 | . 3 2 1 2 . Hauler 1 | . . . . 1 . Recycler 2 | . . . . 2 . Operator 2 | . 1 1 . . . Watcher 1 | . 1 . . . . Swarmer 14 | . . 7 . 7 . Grunt 3 | . 2 1 . . . Sentry 2 | . . 2 . . . Assembled 4 | . . . 4 . . Best Kill Streak 9 | . 2 9 3 6 . Combat Bots Only 9 | . 2 9 3 4 . Max Kills in Single Turn 3 | . 1 3 1 2 . Gunslinging . | . . . . . . Exploded 3 | . . 3 1 2 . Melee 1 | . . . 1 . . Uniques/NPCs Destroyed . | . . . . . . Combat | -11 -10 -9 -9 -8 -7 -------- Run | Yrd Mat Mat Min Mat Fac Hostile Shots Fired 322 | . 4 27 12 51 228 Missed 179 | . 1 5 4 25 144 Damage Taken 2184 | . 32 334 203 337 1278 Core 1053 | . 21 75 81 162 714 Absorbed by Shields . | . . . . . . Regen/Repaired (Parts) 66 | . . 12 . 11 43 Core Remaining (%) 80 | 100 91 . 61 70 . Volleys Fired 53 | . 9 13 16 9 6 Largest 2 | . 2 2 2 1 1 Hottest 70 | . 70 70 50 30 48 Shots Fired 79 | . 18 26 21 9 5 Gun 52 | . 18 19 15 . . Cannon 4 | . . . . . 4 Launcher 22 | . . 7 6 9 . Special 1 | . . . . . 1 Kinetic 41 | . 9 13 15 . 4 Thermal 15 | . 9 6 . . . Explosive 22 | . . 7 6 9 . Electromagnetic . | . . . . . . Robot Hit Streak 9 | . 6 9 3 1 2 Robot Miss Streak 6 | . 3 3 6 1 3 Penetration Max . | . . . . . . Secondary Targets . | . . . . . . Shots Hit Robots 36 | . 9 16 8 1 2 Core Hits 58 | . 7 21 15 15 . Critical Kills . | . . . . . . Critical Parts Destroyed . | . . . . . . Critical Strikes 3 | . 1 2 . . . Burn 3 | . 1 2 . . . Melee Attacks . | . . . . . . Impact . | . . . . . . Slashing . | . . . . . . Piercing . | . . . . . . Sneak Attacks . | . . . . . . Combat Hostiles . | . . . . . . Follow-up Attacks . | . . . . . . Damage Inflicted 1856 | . 108 655 414 648 31 Guns 325 | . 108 171 46 . . Cannons 31 | . . . . . 31 Explosions 1494 | . . 484 362 648 . Melee . | . . . . . . Ramming 6 | . . . 6 . . Kinetic 230 | . 45 108 46 . 31 Thermal 126 | . 63 63 . . . Explosive 1494 | . . 484 362 648 . Electromagnetic . | . . . . . . Impact . | . . . . . . Slashing . | . . . . . . Piercing . | . . . . . . Highest Corruption 2 | . . . . . 2 Average Corruption 2 | . . . . . 2 Corruption Purged . | . . . . . . Corruption Blocked . | . . . . . . Effects 9 | . . . . . 9 Message Errors 3 | . . . . . 3 Heat Flow Errors 3 | . . . . . 3 Energy Discharges 1 | . . . . . 1 Data Loss (minor) 1 | . . . . . 1 Weapon Failures 1 | . . . . . 1 Overload Shots . | . . . . . . Overflow Damage 79 | . . 19 4 56 . Projectiles . | . . . . . . Explosions 79 | . . 19 4 56 . Melee . | . . . . . . Knockbacks . | . . . . . . Impact . | . . . . . . Kinetic . | . . . . . . Secondary . | . . . . . . Self-Inflicted Damage 169 | . . 100 53 16 . Shots 6 | . . 3 2 1 . Rammed 1 | . . . 1 . . Targets Rammed 1 | . . . 1 . . Kicked . | . . . . . . Crushed . | . . . . . . Highest Temperature 248 | . 54 72 16 31 248 Average Temperature 44 | . 18 46 7 11 82 Received Heat Transfer 444 | . 18 81 . 135 210 Siege Activations . | . . . . . . Robots Corrupted . | . . . . . . Combat Hostiles . | . . . . . . Parts Fried . | . . . . . . Impact Corruptions . | . . . . . . Robots Melted . | . . . . . . Combat Hostiles . | . . . . . . Parts Melted 1 | . 1 . . . . Heat Transferred 592 | . 259 333 . . . Parts Sabotaged . | . . . . . . Parts Stolen . | . . . . . . Parts Stripped . | . . . . . . Power Chain Reactions . | . . . . . . Alert | -11 -10 -9 -9 -8 -7 ------- Run | Yrd Mat Mat Min Mat Fac Peak Influence 626 | . 107 361 195 382 626 Initial 173 | . . 44 140 68 173 Average 293 | . 62 184 174 237 393 Maximum Alert Level 2 | . . 1 . 1 2 Low Security (%) 36 | 100 100 57 100 32 10 Level 1 29 | . . 42 . 67 31 Level 2 34 | . . . . . 58 Level 3 . | . . . . . . Level 4 . | . . . . . . Level 5 . | . . . . . . High Security . | . . . . . . Max Security . | . . . . . . Squads Dispatched 16 | . 1 3 . 6 6 Investigation 8 | . . 2 . 1 5 Extermination . | . . . . . . Reinforcement 5 | . 1 1 . 2 1 Assault . | . . . . . . Garrison 3 | . . . . 3 . Intercept . | . . . . . . Searches Triggered 1 | . . . . . 1 Construction Impeded . | . . . . . . Haulers Reinforced . | . . . . . . Active Scanning Responses . | . . . . . . Cargo Convoy Interrupts . | . . . . . . Stealth | -11 -10 -9 -9 -8 -7 --------- Run | Yrd Mat Mat Min Mat Fac Distress Signals 2 | . . . . 2 . Communications Jammed . | . . . . . . Distress Signals . | . . . . . . Times Spotted 115 | . 6 15 9 33 52 Peak Tracking Total 20 | . 2 6 3 20 12 Tactical Retreats 22 | . . 1 1 3 17 Traps | -11 -10 -9 -9 -8 -7 ------- Run | Yrd Mat Mat Min Mat Fac Traps Triggered 7 | . . 3 . . 4 Indirectly . | . . . . . . Trap Hack Attempts . | . . . . . . Triggered . | . . . . . . Disarmed 4 | . . . . . 4 Reprogrammed 1 | . . . . . 1 Reused . | . . . . . . Traps Extracted . | . . . . . . Installed . | . . . . . . Triggered . | . . . . . . Machines | -11 -10 -9 -9 -8 -7 ---------- Run | Yrd Mat Mat Min Mat Fac Machines Disabled 4 | . . 1 2 1 . Max in Single Turn 2 | . . 1 2 1 . Garrison Access 2 | . . . . . 2 Machines Repaired . | . . . . . . Machines Dismantled . | . . . . . . Machines Sabotaged . | . . . . . . Overloaded Fab Kills . | . . . . . . Hacking | -11 -10 -9 -9 -8 -7 --------- Run | Yrd Mat Mat Min Mat Fac Machines Accessed 21 | . . 3 . 2 16 Terminals 10 | . . 1 . 1 8 Fabricators 3 | . . . . . 3 Repair Stations 4 | . . 1 . 1 2 Recycling Units 1 | . . 1 . . . Scanalyzers 1 | . . . . . 1 Garrison Access 2 | . . . . . 2 Total Hacks 57 | . . 6 . 5 46 Successful 45 | . . 6 . 3 36 Failed 12 | . . . . 2 10 Catastrophic . | . . . . . . Database Lockouts . | . . . . . . Manual . | . . . . . . Terminals 31 | . . 3 . 3 25 Fabricators 6 | . . . . . 6 Repair Stations 10 | . . 2 . 2 6 Recycling Units 1 | . . 1 . . . Scanalyzers 4 | . . . . . 4 Garrison Access 5 | . . . . . 5 Terminal Hacks 23 | . . 3 . 1 19 Record 2 | . . 1 . . 1 Prototype ID Bank 1 | . . . . . 1 Open DSF 3 | . . . . . 3 Branch Access Points 1 | . . . . . 1 Repair Station Index 1 | . . 1 . . . Unreport Threat 2 | . . . . 1 1 Locate Traps 1 | . . . . . 1 Disarm Traps 1 | . . . . . 1 Reprogram Traps 1 | . . . . . 1 Dispatch Records 1 | . . . . . 1 Security Status 1 | . . . . . 1 Surveillance Status 1 | . . . . . 1 Investigation Status 1 | . . . . . 1 Reinforcement Status 1 | . . . . . 1 Recall Investigation 1 | . . . . . 1 Zone Layout 4 | . . 1 . . 3 Fabricator Hacks 6 | . . . . . 6 Network Status 3 | . . . . . 3 Build 3 | . . . . . 3 Repair Station Hacks 9 | . . 2 . 2 5 Scan Component 5 | . . 1 . 1 3 Repair 4 | . . 1 . 1 2 Recycling Unit Hacks 1 | . . 1 . . . Report Inventory 1 | . . 1 . . . Scanalyzer 3 | . . . . . 3 Insert Component 2 | . . . . . 2 Analyze 1 | . . . . . 1 Garrison Access Hacks 3 | . . . . . 3 Seal Access 2 | . . . . . 2 Coupler Status 1 | . . . . . 1 Unauthorized Hacks . | . . . . . . Terminals . | . . . . . . Fabricators . | . . . . . . Repair Stations . | . . . . . . Recycling Units . | . . . . . . Scanalyzers . | . . . . . . Garrison Access . | . . . . . . Data Cores Recovered . | . . . . . . Used . | . . . . . . Hacking Detections 13 | . . 1 . 1 11 Full Trace Events 6 | . . . . 1 5 Feedback Events . | . . . . . . Feedback Blocked . | . . . . . . Robot Schematics Acquired . | . . . . . . Robots Built 1 | . . . . . 1 Authchips . | . . . . . . Time 116 | . . . . . 116 Total Robot Build Rating 3 | . . . . . 3 Part Schematics Acquired 1 | . . . . . 1 Parts Built 1 | . . . . . 1 Authchips . | . . . . . . Time 137 | . . . . . 137 Total Part Build Rating 4 | . . . . . 4 Parts Repaired 4 | . . 1 . 1 2 Time 90 | . . 26 . 26 38 Parts Recycled . | . . . . . . Recycled Matter . | . . . . . . Retrieved Matter . | . . . . . . Retrieved Components . | . . . . . . Parts Scanalyzed 1 | . . . . . 1 Part Schematics Acquired 1 | . . . . . 1 Parts Damaged . | . . . . . . Bothacking | -11 -10 -9 -9 -8 -7 ------------ Run | Yrd Mat Mat Min Mat Fac Used RIF Installer . | . . . . . . Robots Hacked . | . . . . . . Non-combat . | . . . . . . Combat . | . . . . . . Robot Hacks Applied . | . . . . . . Relay Couplers Released . | . . . . . . Fabnet Peak Effective % . | . . . . . . Robots Rewired . | . . . . . . Allies Hacked . | . . . . . . Hacks Repelled . | . . . . . . Allies | -11 -10 -9 -9 -8 -7 -------- Run | Yrd Mat Mat Min Mat Fac Total Allies 3 | . . . 2 . 1 Largest Group 2 | . . . 2 1 1 Highest-Rated Group 47 | . . . 47 31 23 Highest-Rated Ally 31 | . . . 31 31 23 Total Orders . | . . . . . . Ally Attacks 11 | . . . 5 6 . Total Damage 168 | . . . 85 83 . Kills 3 | . . . 3 . . Allies Corrupted . | . . . . . . Allies Melted . | . . . . . . Intel | -11 -10 -9 -9 -8 -7 ------- Run | Yrd Mat Mat Min Mat Fac Robot Analysis Total . | . . . . . . Derelict Logs Recovered . | . . . . . . Drone Launches . | . . . . . . Drone Recoveries . | . . . . . . Exploration | -11 -10 -9 -9 -8 -7 ------------- Run | Yrd Mat Mat Min Mat Fac Turns Passed 1777 | 53 169 257 124 129 1045 Spaces Moved 2568 | 35 113 199 205 298 1718 Core 137 | 6 . 7 . . 124 Treads . | . . . . . . Legs 215 | 29 113 73 . . . Wheels . | . . . . . . Hover 5 | . . 5 . . . Flight 2211 | . . 114 205 298 1594 Fastest Speed 26 | 50 120 37 37 31 26 Average Speed 47 | 116 120 70 37 31 43 Slowest Speed 300 | 150 120 120 37 37 300 Overloaded Moves . | . . . . . . Propulsion Burnouts . | . . . . . . Robots Hopped 26 | . . . 2 5 19 Cave-ins Triggered . | . . . . . . Exploration Rate (%) 28 | 3 27 28 38 36 40 Regions Visited 5 Branch Regions 1 Pre-discovered Areas . | . . . . . . Known Exits Taken 3 | . . 1 1 1 . Unknown Exits Taken 2 | 1 1 . . . . Scrap Searched 1 | . . . 1 . . Spaces Dug 11 | . . . 11 . . Terrain Destroyed 206 | . . 81 63 61 1 Melee . | . . . . . . Projectile 1 | . . . . . 1 AOE 205 | . . 81 63 61 . Terrain Rammed . | . . . . . . Walls Destroyed . | . . . . . . Machines Disabled . | . . . . . . Actions | -11 -10 -9 -9 -8 -7 --------- Run | Yrd Mat Mat Min Mat Fac Total 3012 | 47 129 289 233 318 1996 Wait 261 | 1 . 36 2 3 219 Move 2512 | 34 112 198 200 287 1681 Hop 25 | . . . 2 5 18 Pick Up 68 | 7 5 15 5 7 29 Fast Attach . | . . . . . . Attach 46 | 5 2 8 1 6 24 Detach 3 | . . 2 . . 1 Swap 18 | . . 9 2 1 6 Drop 25 | . 1 8 4 . 12 Fire 53 | . 9 13 16 9 6 Melee . | . . . . . . Ram 1 | . . . 1 . . Kick . | . . . . . . Crush . | . . . . . . Escape Stasis . | . . . . . . Rewire . | . . . . . . Trap . | . . . . . . Miscellaneous . | . . . . . . Route ------- -11/Scrapyard -10/Materials -9/Materials -9/Mines -8/Materials -7/Factory (discovered 2 exits: Low x2) History --------- Turn | Location | Event 23 | -11/Scrapyard | Discovered new exit (range 15) 54 | -11/Scrapyard | Entered Materials 155 | -10/Materials | Discovered new exit (range 4) 223 | -10/Materials | Entered another Materials area 223 | -9/Materials | Evolved 2 slots: Utility x2 414 | -9/Materials | Destroyed 9 combat bots 449 | -9/Materials | Repaired Flight Unit 464 | -9/Materials | Discovered new exit (range 7) 479 | -9/Materials | Identified exit to Mines 480 | -9/Materials | Entered Mines 483 | -9/Mines | Assembled infested the area 497 | -9/Mines | Joined a pair of Derelicts in attacking an 0b10 outpost 597 | -9/Mines | Discovered new exit (range 10) 600 | -9/Mines | Identified exit to Materials 604 | -9/Mines | Entered Materials 604 | -8/Materials | Accompanied by 1 ally 604 | -8/Materials | Evolved 2 slots: Propulsion x2 609 | -8/Materials | Led the pair of lost Derelicts to an unsafe place 642 | -8/Materials | Repaired Flight Unit 730 | -8/Materials | Discovered new exit (range 5) 733 | -8/Materials | Identified exit to Factory 733 | -8/Materials | Entered Factory 733 | -7/Factory | Evolved 2 slots: Utility x2 847 | -7/Factory | Repaired Imp. Flight Unit 870 | -7/Factory | Fabricated M-28 Smith? 906 | -7/Factory | Repaired Flight Unit 956 | -7/Factory | Lost 3 parts (1p2n) 983 | -7/Factory | Fabricated Drone Bay? 1034 | -7/Factory | Fabricated Armor Integrity Analyzer? 1107 | -7/Factory | Identified exit to Lower Caves 1269 | -7/Factory | Build established: Hacker-Mutant 1452 | -7/Factory | Core integrity fell below 50% 1482 | -7/Factory | Lost 4 parts (3n1u) 1533 | -7/Factory | Search patrols dispatched 1561 | -7/Factory | Core integrity fell below 20% 1778 | -7/Factory | Destroyed by S-27 Virus with Autogun Last Messages --------------- Dropped Remote Datajack. Imp. Sensor Array destroyed. Acquired Remote Datajack. Connecting with DSF Access... Acquired EM Pulse Cannon. Dropped EM Pulse Cannon. Acquired Cesium-ion Thruster. Acquired Prototype Ballistic Cannon. Identified Mni. Assault Cannon. System corrupted: Heat flow error (+259). Acquired Mic. Nuclear Core. UTWRR0ZSAFFTKF<9YT N%GV710GQYS K-01 Serf cleans the Assembly Bed. Connecting with Scanalyzer... >>Insert(Remote Datajack) Scanning Remote Datajack... Ready to analyze. ALERT: Suspicious activity at Scanalyzer F002. Dispatching Investigation squad. System corrupted: Mni. Assault Cannon jammed. Map ----- +----------------------------------------------------+ | ???????????########?????????# # # """"""" | | ????????????????????????????# # # """"""" | | ????##############??????????# # # " """"""" | | ????# #??????????# # # T """"""" | | ????# """" """" "#??????????# # """ # " | | ????# """" """" T#??????????# # """ + | | ????# """" """" "#??#########+# """ # | | ????# """" """" #??# # # ###+### | | ????# """" """" #??# "" """ ######## # | | ????# """" """" #??# ""S """ # # | | ????# """" """" #??# "" """ # # | | ????# #??# # # | | ????# #??# + # | | ????# ! #??# # # | | ????# #??# ! # ######## | | ??#########+################### #??????# | | ??# #??????# | | ??# #??????# | | ??# #??????# | | ??# """ """ #??????# | | ??# """ """ #??????####### | | ??# ################ """ """ #????????????# | | ??# # ! ???# ############## | | ??# ?# ! ??# """ uu | | ??# ??? s s ### """ "Y" | | ??# ???????"" """ s @""" """ | | ??# ???????"" """ %##; | | ??# ?????????" """ ?## | | ?????????????? ?#####+#+###########+######### | | ?????????????"" """ ?# !## #?# | | ?????????????"" """??# """" ## " " " " " #?# | | ?????????????"" """??# ""S"" ## " " " " " #?? | | ????????????? ???# "" "" ## " " " " " #?? | | ???????????????? ???# ## " " " " " #?? | | ????????##########?### ## " " " " " #?? | | ????????# ##= ## " " " " " #?? | | ????????# """""" ! ## ## " " " " " #?? | | ????????# """""" ## """""" #??" " " " "??#?? | | ????????# """""" ## """""" #????" " "??????? | | ????????# """""" ## """""" #????? ??????? | | ????????# ## """""" #?????? ??????? | | ????????#####+######## #?????#########?? | | ??????????# #????######+#######????# #?? | | ??????????# ########### # """ #????# ### | | ??????????# + # # """ #????# # | | ??????????# ## # # """ #????# # " | | ??????????# !## # # #????# # " | | ??????????## ### # # !############+# " | | ???????????# #?# # ##+##### + " | | ?########### #?# # # | +----------------------------------------------------+ Best States ------------- Heat Dissipation 34 Energy Generation 18 Energy Capacity 510 Matter Stores 300 Matter Capacity 300 Sight Range 16 Robot Scan Range 15 Terrain Scan Range 16 Terrain Scan Density 210 Evasion (%) 64 Offensive Hacking 50 Item Schematics ----------------- Imp. Sensor Array | -7/Factory | Scanalyzed Robot Schematics ------------------ None Fabricated ------------ M-28 Smith | x1 | -7/Factory | Preloaded Armor Integrity Analyzer | x1 | -7/Factory | Preloaded Alien Tech Used ----------------- None Achievements -------------- My Command Is Your Wish Challenges ------------ None Game ------ Seed RainbowDrainedBay Manual? 0 Play Time 00:51:33 Cumulative 18.4 hours Start 2024.04.04 @ 17:20:05 End 2024.04.04 @ 18:18:58 Sessions 1 Manual Loads 0 Difficulty Rogue Special Mode None Game No. 20 Rogue 15 Adventurer 5 Explorer 0 Win Type - Total 1 Types 1/0/0/0/0/0/0/0/0 Lore% 10 Gallery% 27 Achievement% 26 Wizard Run 0 Options --------- Layout 1 ASCII 0 Keyboard 0 Movement Mouse Keybinds 0 Fullscreen 1 Font 24/Terminus Map View 50x35 Zoom Use 0% Tactical HUD 0 Map Filters NONE Filters NONE Steam 1 RUN: 4705db55-96a6-49d3-9c3b-7b6239501164